bitfinex/quotes_BTCUSD_20241027
["timestamp","ask_amount","ask_price","bid_price","bid_amount"]
[1729990248651,0.001644,66960.0,66959.0,0.35891163]
[1729990248855,0.00937933,66960.0,66959.0,0.35891163]
[1729990249458,0.00937933,66960.0,66959.0,0.37010174]
[1729990249692,0.00937933,66960.0,66959.0,0.35891163]
[1729990249891,0.00937933,66960.0,66959.0,0.37010189]
[1729990250523,0.00937933,66960.0,66959.0,0.37477264]
[1729990250851,0.00937933,66960.0,66959.0,0.3747729]
[1729990253098,0.00937933,66960.0,66959.0,0.37559491]
[1729990253535,0.00937933,66960.0,66959.0,0.38306813]
[1729990254598,0.00937933,66960.0,66959.0,0.3952124]
[1729990256598,0.00937933,66960.0,66959.0,0.38774117]
[1729990259645,0.00937933,66960.0,66959.0,0.3765511]
[1729990262509,0.00937933,66960.0,66959.0,0.35973625]
[1729990262716,0.00937933,66960.0,66959.0,0.37188025]
[1729990262946,0.00937933,66960.0,66959.0,0.37655102]
[1729990264858,0.00937933,66960.0,66959.0,0.27817446]
[1729990265066,0.00937933,66960.0,66959.0,0.37655102]
[1729990265765,0.00937933,66960.0,66959.0,0.37188025]
[1729990266224,0.00937933,66960.0,66959.0,0.34854356]
[1729990266441,0.00937933,66960.0,66959.0,0.36441826]
[1729990266669,0.00937933,66960.0,66959.0,0.37189156]
[1729990269691,0.00937933,66960.0,66959.0,0.37656226]
[1729990269904,0.00937933,66960.0,66959.0,0.37189156]
[1729990270345,0.00937933,66960.0,66959.0,0.37656226]
[1729990271537,0.00937933,66960.0,66959.0,0.37189156]
[1729990273157,0.00937933,66960.0,66959.0,0.47026812]
[1729990273574,0.00937933,66960.0,66959.0,0.47026813]
[1729990273994,0.00937933,66960.0,66959.0,0.37189157]
[1729990276025,0.00937933,66960.0,66959.0,0.37189151]
[1729990276904,0.00937933,66960.0,66959.0,0.71846998]
[1729990277178,0.001644,66960.0,66959.0,0.79176552]
[1729990278966,0.001644,66960.0,66959.0,0.79676552]
[1729990279611,0.001644,66960.0,66959.0,0.79676499]
[1729990280267,0.001644,66960.0,66959.0,0.79647135]
[1729990280482,0.001644,66960.0,66959.0,0.79676499]
[1729990281127,0.001644,66960.0,66959.0,0.79676032]
[1729990284459,0.001644,66960.0,66959.0,0.79675833]
[1729990286859,0.04671816,66965.0,66964.0,0.254333]
[1729990287103,0.002,66965.0,66964.0,0.79453069]
[1729990287950,0.004,66967.0,66966.0,0.37062264]
[1729990288171,0.004,66967.0,66966.0,0.53326788]
[1729990288403,0.004,66967.0,66966.0,0.54446168]
[1729990288607,0.22240179,66974.0,66973.0,0.249313]
[1729990288830,0.22240179,66974.0,66973.0,0.61549917]
[1729990289033,0.00774825,66974.0,66973.0,0.62669297]
[1729990289233,0.29112303,66981.0,66979.0,0.1493]
[1729990289234,0.04471816,66980.0,66979.0,0.1493]
[1729990289446,0.04471816,66980.0,66979.0,0.17263523]
[1729990289694,0.0524807,66980.0,66979.0,0.17263523]
[1729990290114,0.0574807,66980.0,66979.0,0.17263523]
[1729990290332,0.01276254,66980.0,66979.0,0.17263523]
[1729990290573,0.01176254,66980.0,66979.0,0.17263523]
[1729990292575,0.01176254,66980.0,66979.0,0.17562093]
[1729990292992,0.01176254,66980.0,66979.0,0.17263523]
[1729990293433,0.01176254,66980.0,66979.0,0.16442712]
[1729990295007,0.004,66980.0,66979.0,0.16442712]
[1729990295223,0.004,66980.0,66979.0,0.16144062]
[1729990295442,0.004,66980.0,66979.0,0.16442624]
[1729990298331,0.004,66980.0,66979.0,0.17638619]
[1729990298958,0.004,66980.0,66979.0,0.17340057]
[1729990299567,0.005642,66980.0,66979.0,0.17340057]
[1729990299776,0.180642,66980.0,66979.0,0.25981718]
[1729990299997,0.180642,66980.0,66979.0,0.24767656]
[1729990300214,0.180642,66980.0,66979.0,0.25981717]
[1729990301466,0.102742,66980.0,66979.0,0.25981717]
[1729990301684,0.005642,66980.0,66979.0,0.25981717]
[1729990302365,0.005642,66980.0,66979.0,0.24767656]
[1729990302622,0.005642,66980.0,66979.0,0.2598171]
[1729990303899,0.005642,66980.0,66979.0,0.26280275]
[1729990304094,0.005642,66980.0,66979.0,0.27397207]
[1729990306076,0.005642,66980.0,66979.0,0.25066221]
[1729990306317,0.005642,66980.0,66979.0,0.26280255]
[1729990306779,0.005642,66980.0,66979.0,0.27397395]
[1729990306993,0.005642,66980.0,66979.0,0.26183361]
[1729990307200,0.005642,66980.0,66979.0,0.27397395]
[1729990309401,0.005642,66980.0,66979.0,0.37397395]
[1729990309581,0.005642,66980.0,66979.0,0.37099213]
[1729990310924,0.005642,66980.0,66979.0,0.36352115]
[1729990311136,0.005642,66980.0,66979.0,0.36352114]
[1729990311344,0.005642,66980.0,66979.0,0.3709921]
[1729990311553,0.005642,66980.0,66979.0,0.35885427]
[1729990311998,0.005642,66980.0,66979.0,0.35981687]
[1729990312208,0.005642,66980.0,66979.0,0.36352362]
[1729990312631,0.005642,66980.0,66979.0,0.38217401]
[1729990313669,0.005642,66980.0,66979.0,0.38217669]
[1729990317317,0.005642,66980.0,66979.0,0.3889592]
[1729990319514,0.005642,66980.0,66979.0,0.37003638]
[1729990319739,0.005642,66980.0,66979.0,0.38897781]
[1729990322176,0.005642,66980.0,66979.0,0.27165982]
[1729990322397,0.005642,66980.0,66979.0,0.388998]
[1729990322613,0.005642,66980.0,66979.0,0.37782029]
[1729990323261,0.005642,66980.0,66979.0,0.37101904]
[1729990324169,0.005642,66980.0,66979.0,0.27264248]
[1729990324605,0.05799388,66980.0,66979.0,0.27264248]
[1729990324844,0.15629388,66980.0,66979.0,0.27264248]
[1729990325697,0.15630137,66980.0,66979.0,0.27264248]
[1729990326551,0.11165567,66980.0,66979.0,0.27264248]
[1729990329079,0.103942,66980.0,66979.0,0.27264248]
[1729990329506,0.103942,66980.0,66979.0,0.27264331]
[1729990331335,0.005642,66980.0,66979.0,0.27264331]
[1729990332946,0.005642,66980.0,66979.0,0.27263589]
[1729990333785,0.01335567,66980.0,66979.0,0.27263589]
[1729990335165,0.01335567,66980.0,66979.0,0.52450196]
[1729990335393,0.01335567,66980.0,66979.0,0.7380231]
[1729990335614,0.005642,66980.0,66979.0,0.7380231]
[1729990336041,0.005642,66980.0,66979.0,0.71791626]
[1729990336245,0.005642,66980.0,66979.0,0.71991626]
[1729990336475,0.005642,66980.0,66979.0,0.70777574]
[1729990336690,0.005642,66980.0,66979.0,0.71991535]
[1729990337818,0.005642,66980.0,66979.0,0.71791535]
[1729990338487,0.005642,66980.0,66979.0,0.71991535]
[1729990339176,0.005642,66980.0,66979.0,0.71791535]
[1729990339391,0.005642,66980.0,66979.0,0.71991535]
[1729990340062,0.005642,66980.0,66979.0,0.70777574]
[1729990340288,0.005642,66980.0,66979.0,0.71990374]
[1729990340709,0.005642,66980.0,66979.0,0.71790374]
[1729990341211,0.005642,66980.0,66979.0,0.61952718]
[1729990341634,0.005642,66980.0,66979.0,0.71790374]
[1729990342976,0.005642,66980.0,66979.0,0.61952718]
[1729990343187,0.005642,66980.0,66979.0,0.71790374]
[1729990343838,0.005642,66980.0,66979.0,0.71819738]
[1729990344055,0.005642,66980.0,66979.0,0.72019738]
[1729990346196,0.22240179,66992.0,66991.0,0.34764956]
[1729990346418,0.22240179,66992.0,66991.0,0.52147674]
[1729990346874,0.001644,66996.0,66995.0,0.149264]
[1729990347129,0.001644,66996.0,66995.0,0.2739489]
[1729990348467,0.001644,66996.0,66995.0,0.262764]
[1729990348676,0.00877372,66996.0,66995.0,0.61164437]
[1729990348905,0.001644,66996.0,66995.0,0.52146774]
[1729990349809,0.0087846,66996.0,66995.0,0.52146774]
[1729990350025,0.001644,66996.0,66995.0,0.52146774]
[1729990350248,0.0087846,66996.0,66995.0,0.42309118]
[1729990350492,0.0087846,66996.0,66995.0,0.52146774]
[1729990350697,0.0087846,66996.0,66995.0,0.53343867]
[1729990356915,0.0087846,66996.0,66995.0,0.59312867]
[1729990357458,0.001644,66996.0,66995.0,0.59312867]
[1729990357684,0.00850942,66996.0,66995.0,0.59312867]
[1729990358341,0.00850942,66996.0,66995.0,0.59310783]
[1729990360740,0.18440942,66996.0,66995.0,0.59310783]
[1729990362209,0.18440942,66996.0,66995.0,0.59311469]
[1729990369678,0.10520942,66996.0,66995.0,0.59311467]
[1729990369892,0.00850942,66996.0,66995.0,0.59311467]
[1729990372625,0.00850942,66996.0,66995.0,0.58097772]
[1729990372856,0.00850942,66996.0,66995.0,0.59311452]
[1729990373575,0.00850942,66996.0,66995.0,0.58194188]
[1729990373793,0.001644,66996.0,66995.0,0.58194188]
[1729990374013,0.001644,66996.0,66995.0,0.59313392]
[1729990377248,0.001644,66996.0,66995.0,0.5698053]
[1729990377463,0.001644,66996.0,66995.0,0.59313743]
[1729990380873,0.001644,66996.0,66995.0,0.5698053]
[1729990381089,0.001644,66996.0,66995.0,0.59313939]
[1729990383941,0.001644,66996.0,66995.0,0.58847144]
[1729990384165,0.001644,66996.0,66995.0,0.58194205]
[1729990384405,0.001644,66996.0,66995.0,0.59314122]
[1729990388004,0.001644,66996.0,66995.0,0.58100447]
[1729990388227,0.001644,66996.0,66995.0,0.59314169]
[1729990392062,0.001644,66996.0,66995.0,0.58194201]
[1729990392309,0.001644,66996.0,66995.0,0.59314169]
[1729990393193,0.04472309,67004.0,67002.0,0.005]
[1729990393412,0.083744,67013.0,67004.0,0.277244]
[1729990393413,0.22240179,67008.0,67004.0,0.277244]
[1729990393629,0.22240179,67008.0,67004.0,0.5344685]
[1729990393850,0.22240179,67008.0,67004.0,0.5314842]
[1729990394124,0.04636709,67013.0,67004.0,0.5314842]
[1729990394813,0.001644,67013.0,67004.0,0.5314842]
[1729990395736,0.001644,67013.0,67004.0,0.51934749]
[1729990395977,0.001644,67013.0,67004.0,0.55011577]
[1729990396206,0.005,67015.0,67006.0,0.005]
[1729990396207,0.002294,67015.0,67006.0,0.005]
[1729990396426,0.002294,67015.0,67014.0,0.24759856]
[1729990396666,0.002294,67015.0,67014.0,0.25973263]
[1729990397106,0.002294,67015.0,67014.0,0.27091582]
[1729990397765,0.00700036,67015.0,67014.0,0.27091582]
[1729990398216,0.00700036,67015.0,67014.0,0.27091596]
[1729990398764,0.00700036,67015.0,67014.0,0.25878175]
[1729990398798,0.00700036,67015.0,67014.0,0.27091585]
[1729990400262,0.002294,67015.0,67014.0,0.27091585]
[1729990401248,0.08910036,67018.0,67017.0,0.149215]
[1729990401490,0.08910036,67018.0,67017.0,0.25972566]
[1729990406523,0.08910036,67018.0,67017.0,0.25225852]
[1729990406760,0.08910036,67018.0,67017.0,0.25972566]
[1729990408540,0.09543905,67018.0,67017.0,0.25225852]
[1729990408764,0.09543905,67018.0,67017.0,0.16134918]
[1729990409219,0.084394,67018.0,67017.0,0.16134918]
[1729990409659,0.08910036,67018.0,67017.0,0.15388196]
[1729990409885,0.08910036,67018.0,67017.0,0.16134912]
[1729990410582,0.08910036,67018.0,67017.0,0.15388196]
[1729990410789,0.08910036,67018.0,67017.0,0.16134909]
[1729990413458,0.08910036,67018.0,67017.0,0.15388196]
[1729990413677,0.08910036,67018.0,67017.0,0.16134917]
[1729990414126,0.08910036,67018.0,67017.0,0.15388196]
[1729990414317,0.08910036,67018.0,67017.0,0.16134924]
[1729990414975,0.09074236,67018.0,67017.0,0.16134924]
[1729990417908,0.09074236,67018.0,67017.0,0.16134934]
[1729990418565,0.09708086,67018.0,67017.0,0.16134934]
[1729990419006,0.0079805,67018.0,67017.0,0.42601241]
[1729990419225,0.0079805,67018.0,67017.0,0.42302736]
[1729990419468,0.001642,67018.0,67017.0,0.42302736]
[1729990419683,0.001642,67018.0,67017.0,0.54302736]
[1729990422276,0.001642,67018.0,67017.0,0.62452736]
[1729990425103,0.001642,67018.0,67017.0,0.62452525]
[1729990428561,0.001642,67018.0,67017.0,0.71076958]
[1729990428773,0.001642,67018.0,67017.0,0.72289699]
[1729990430768,0.001642,67018.0,67017.0,0.62452043]
[1729990432717,0.001642,67018.0,67017.0,0.60718481]
[1729990432940,0.001642,67018.0,67017.0,0.6258177]
[1729990433153,0.001642,67018.0,67017.0,0.63048389]
[1729990434906,0.001642,67018.0,67017.0,0.54898389]
[1729990435611,0.001642,67018.0,67017.0,0.45698389]
[1729990436714,0.001642,67018.0,67017.0,0.45698375]
[1729990441343,0.001642,67018.0,67017.0,0.55536031]
[1729990443339,0.001642,67018.0,67017.0,0.55536633]
[1729990443556,0.001642,67018.0,67017.0,0.42898977]
[1729990443778,0.178942,67018.0,67017.0,0.27848596]
[1729990444206,0.18503093,67018.0,67017.0,0.27848596]
[1729990445803,0.18503093,67018.0,67017.0,0.27848729]
[1729990448743,0.18503093,67018.0,67017.0,0.37686385]
[1729990452990,0.18503093,67018.0,67017.0,0.36569085]
[1729990453211,0.18503093,67018.0,67017.0,0.37687435]
[1729990453877,0.18503093,67018.0,67017.0,0.27849779]
[1729990457548,0.18503093,67018.0,67017.0,0.27849769]
[1729990460521,0.18503093,67018.0,67017.0,0.26731406]
[1729990460971,0.18503093,67018.0,67017.0,0.27849718]
[1729990467839,0.18503093,67018.0,67017.0,0.26731424]
[1729990468064,0.18503093,67018.0,67017.0,0.27850278]
[1729990471530,0.18503093,67018.0,67017.0,0.27850263]
[1729990482347,0.18503093,67018.0,67017.0,0.27850257]
[1729990485927,0.18503093,67018.0,67017.0,0.2785121]
[1729990490829,0.18503093,67018.0,67017.0,0.27851216]
[1729990493710,0.18503093,67018.0,67017.0,0.26637913]
[1729990493923,0.18503093,67018.0,67017.0,0.2663791]
[1729990494335,0.18503093,67018.0,67017.0,0.26264752]
[1729990494539,0.18503093,67018.0,67017.0,0.2673141]
[1729990494754,0.22982111,67018.0,67017.0,0.255181]
[1729990494962,0.22982111,67018.0,67017.0,0.26637906]
[1729990495178,0.22982111,67018.0,67017.0,0.27851217]
[1729990495393,0.22982111,67018.0,67017.0,0.28971024]
[1729990497148,0.18503093,67018.0,67017.0,0.28971024]
[1729990497799,0.22982111,67018.0,67017.0,0.28971024]
[1729990498452,0.18503093,67018.0,67017.0,0.28971035]
[1729990498666,0.22982111,67018.0,67017.0,0.28971035]
[1729990499319,0.18503093,67018.0,67017.0,0.28971035]
[1729990499530,0.22982111,67018.0,67017.0,0.28971035]
[1729990500152,0.18503093,67018.0,67017.0,0.28971035]
[1729990500377,0.22982111,67018.0,67017.0,0.28971035]
[1729990500862,0.18503093,67018.0,67017.0,0.28971035]
[1729990501931,0.18503093,67018.0,67017.0,0.28971031]
[1729990502794,0.22982181,67018.0,67017.0,0.28971031]
[1729990503227,0.18503093,67018.0,67017.0,0.28971031]
[1729990504090,0.22982181,67018.0,67017.0,0.28971031]
[1729990504514,0.22982181,67018.0,67017.0,0.27851238]
[1729990504515,0.18503093,67018.0,67017.0,0.27851238]
[1729990504974,0.18503093,67018.0,67017.0,0.28971057]
[1729990505179,0.18503093,67018.0,67017.0,0.27851251]
[1729990506986,0.22981267,67018.0,67017.0,0.27851251]
[1729990507439,0.18503093,67018.0,67017.0,0.27851251]
[1729990507652,0.22981267,67018.0,67017.0,0.27851251]
[1729990508086,0.22981267,67018.0,67017.0,0.36475575]
[1729990508320,0.22981267,67018.0,67017.0,0.37688875]
[1729990508549,0.18503093,67018.0,67017.0,0.37688875]
[1729990509199,0.22981267,67018.0,67017.0,0.37688875]
[1729990509647,0.18503093,67018.0,67017.0,0.37688875]
[1729990510731,0.18703093,67018.0,67017.0,0.37688875]
[1729990510945,0.23181267,67018.0,67017.0,0.37688875]
[1729990511840,0.18703093,67018.0,67017.0,0.37688875]
[1729990513165,0.23180109,67018.0,67017.0,0.37688875]
[1729990513604,0.18703093,67018.0,67017.0,0.37688875]
[1729990513872,0.23180109,67018.0,67017.0,0.37688875]
[1729990514098,0.18703093,67018.0,67017.0,0.37688875]
[1729990514526,0.23180109,67018.0,67017.0,0.37688875]
[1729990514939,0.231811,67018.0,67017.0,0.37688875]
[1729990515148,0.18703093,67018.0,67017.0,0.37688875]
[1729990515561,0.231811,67018.0,67017.0,0.37688875]
[1729990516232,0.18703093,67018.0,67017.0,0.37688875]
[1729990517793,0.231811,67018.0,67017.0,0.37688875]
[1729990518437,0.18703093,67018.0,67017.0,0.37688875]
[1729990518910,0.231811,67018.0,67017.0,0.37688875]
[1729990519355,0.234105,67018.0,67017.0,0.17851219]
[1729990519591,0.234105,67018.0,67017.0,0.17254619]
[1729990519592,0.44416531,67018.0,67017.0,0.17254619]
[1729990519815,0.35460517,67018.0,67017.0,0.17254619]
[1729990520481,0.44413897,67018.0,67017.0,0.17254619]
[1729990522524,0.35460517,67018.0,67017.0,0.17254619]
[1729990522963,0.18932493,67018.0,67017.0,0.17254619]
[1729990523201,0.25646167,67018.0,67017.0,0.17254619]
[1729990523419,0.25645757,67018.0,67017.0,0.17254619]
[1729990526340,0.25645757,67018.0,67017.0,0.149215]
[1729990526568,0.25645757,67018.0,67017.0,0.17253937]
[1729990528761,0.25644265,67018.0,67017.0,0.17253937]
[1729990530107,0.25644265,67018.0,67017.0,0.16134905]
[1729990530345,0.25644265,67018.0,67017.0,0.17253826]
[1729990531501,0.18932493,67018.0,67017.0,0.17253826]
[1729990533786,0.18932493,67018.0,67017.0,0.16134905]
[1729990534235,0.18932493,67018.0,67017.0,0.172538]
[1729990535583,0.18932493,67018.0,67017.0,0.17253822]
[1729990541286,0.18932493,67018.0,67017.0,0.16040417]
[1729990541494,0.18932493,67018.0,67017.0,0.17253947]
[1729990545147,0.18932493,67018.0,67017.0,0.16040542]
[1729990545380,0.18932493,67018.0,67017.0,0.16134905]
[1729990545610,0.18932493,67018.0,67017.0,0.17254159]
[1729990547563,0.25643903,67018.0,67017.0,0.17254159]
[1729990549267,0.25624879,67018.0,67017.0,0.17254159]
[1729990549504,0.44379044,67018.0,67017.0,0.17254159]
[1729990549744,0.4484968,67018.0,67017.0,0.02332659]
[1729990549952,0.35901133,67018.0,67017.0,0.02332659]
[1729990550153,0.35901133,67018.0,67017.0,0.01213405]
[1729990550585,0.35901133,67018.0,67017.0,0.16134905]
[1729990550829,0.35901133,67018.0,67017.0,0.15388194]
[1729990552145,0.35900767,67018.0,67017.0,0.15388194]
[1729990553193,0.35900767,67018.0,67017.0,0.00466694]
[1729990553400,0.35900767,67018.0,67017.0,0.15388194]
[1729990554429,0.35900767,67018.0,67017.0,0.00466694]
[1729990554641,0.35900767,67018.0,67017.0,0.15388194]
[1729990555116,0.18170767,67018.0,67015.0,0.000821]
[1729990555337,0.45300812,67017.0,67016.0,0.149218]
[1729990555734,0.45906496,67017.0,67016.0,0.00466737]
[1729990556037,0.45906496,67017.0,67016.0,0.15388537]
[1729990556257,0.45906496,67017.0,67016.0,0.00466737]
[1729990556484,0.1820572,67017.0,67016.0,0.00466737]
[1729990556702,0.45900903,67017.0,67016.0,0.00466737]
[1729990556923,0.3471799,67017.0,67016.0,0.00466737]
[1729990557137,0.3471799,67017.0,67016.0,0.15388537]
[1729990558219,0.3471799,67017.0,67016.0,0.00466737]
[1729990560779,0.3471712,67017.0,67016.0,0.15388542]
[1729990561237,0.3471712,67017.0,67016.0,0.00466742]
[1729990566925,0.3471712,67017.0,67016.0,0.15388542]
[1729990567133,0.3471712,67017.0,67016.0,0.00466742]
[1729990569435,0.45899234,67017.0,67016.0,0.15388542]
[1729990569657,0.45899234,67017.0,67016.0,0.00466742]
[1729990571651,0.45899234,67017.0,67016.0,0.00466741]
[1729990571856,0.1820572,67017.0,67016.0,0.00466741]
[1729990572958,0.45897335,67017.0,67016.0,0.00466741]
[1729990574248,0.1820572,67017.0,67016.0,0.00466741]
[1729990577092,0.3312722,67017.0,67016.0,0.00466741]
[1729990577276,0.16121836,67016.0,67015.0,0.000821]
[1729990577590,0.33881836,67016.0,67015.0,0.000821]
[1729990577804,0.34487563,67016.0,67015.0,0.000821]
[1729990579160,0.50994209,67016.0,67015.0,0.000821]
[1729990580043,0.34487563,67016.0,67015.0,0.000821]
[1729990584333,0.50985105,67016.0,67015.0,0.000821]
[1729990586228,0.57903821,67016.0,67015.0,0.000821]
[1729990586930,0.57903821,67016.0,67006.0,0.149239]
[1729990586931,0.09990036,67007.0,67006.0,0.149239]
[1729990587145,0.35424589,67007.0,67006.0,0.15390703]
[1729990587358,0.36030191,67007.0,67006.0,0.15390703]
[1729990587611,0.36030191,67007.0,67006.0,0.15390803]
[1729990587821,0.36030191,67007.0,67006.0,0.14924]
[1729990589186,0.00700036,67005.0,67004.0,0.150063]
[1729990589417,0.00700036,67005.0,67004.0,0.15473125]
[1729990589630,0.05167953,67005.0,67004.0,0.15473125]
[1729990589840,0.05773496,67005.0,67004.0,0.15473125]
[1729990591574,0.05773496,67005.0,67004.0,0.15473118]
[1729990592016,0.00700036,67005.0,67004.0,0.15473118]
[1729990592244,0.09990036,67005.0,67004.0,0.15473118]
[1729990592474,0.17680036,67005.0,67004.0,0.00548918]
[1729990592692,0.24963825,67005.0,67004.0,0.00548918]
[1729990592961,0.18262096,67005.0,67004.0,0.00548918]
[1729990593395,0.24963738,67005.0,67004.0,0.00548918]
[1729990593615,0.34755524,67005.0,67004.0,0.00548918]
[1729990593826,0.43691163,67005.0,67004.0,0.000821]
[1729990594321,0.4369159,67005.0,67004.0,0.000821]
[1729990595436,0.62951416,67005.0,67004.0,0.000821]
[1729990595643,0.48027216,67005.0,67004.0,0.000821]
[1729990596060,0.49679688,67005.0,67004.0,0.000821]
[1729990596483,0.34755488,67005.0,67004.0,0.000821]
[1729990596955,0.49679688,67005.0,67004.0,0.000821]
[1729990597825,0.34755488,67005.0,67004.0,0.000821]
[1729990598739,0.34748272,67005.0,67004.0,0.000821]
[1729990599182,0.49672472,67005.0,67004.0,0.000821]
[1729990600897,0.63082794,67005.0,67004.0,0.000821]
[1729990601107,0.89470831,67005.0,67004.0,0.000821]
[1729990601312,1.0286912,67005.0,67004.0,0.000821]
[1729990601525,0.89470831,67005.0,67004.0,0.000821]
[1729990601990,0.1712,67000.0,66994.0,0.149266]
[1729990602201,0.1712,67000.0,66989.0,0.02336432]
[1729990602202,0.002294,66991.0,66990.0,0.149276]
[1729990602417,0.002294,66991.0,66990.0,0.15394518]
[1729990602650,0.0080659,66991.0,66990.0,0.15394518]
[1729990603794,0.002294,66991.0,66990.0,0.15394518]
[1729990606248,0.00700036,66991.0,66990.0,0.15394518]
[1729990607151,0.00700036,66991.0,66990.0,0.149276]
[1729990607380,0.00700036,66991.0,66990.0,0.15394521]
[1729990607593,0.00700036,66991.0,66990.0,0.149276]
[1729990608014,0.00700036,66991.0,66990.0,0.15394521]
[1729990608490,0.00700036,66991.0,66990.0,0.149276]
[1729990610655,0.00700036,66991.0,66990.0,0.150098]
[1729990612150,0.01277057,66991.0,66990.0,0.150098]
[1729990612360,0.00700036,66991.0,66990.0,0.150098]
[1729990614402,0.00700036,66991.0,66990.0,0.15476722]
[1729990615089,0.00700036,66991.0,66990.0,0.150098]
[1729990615305,0.00700036,66991.0,66990.0,0.15476722]
[1729990615738,0.00700036,66991.0,66990.0,0.150098]
[1729990615932,0.01277057,66991.0,66990.0,0.150098]
[1729990618745,0.01277057,66991.0,66990.0,0.15476722]
[1729990618948,0.01277057,66991.0,66990.0,0.150098]
[1729990622842,0.01277057,66991.0,66990.0,0.15476723]
[1729990627331,0.01277057,66991.0,66990.0,0.162238]
[1729990628010,0.01277057,66991.0,66990.0,0.15476723]
[1729990628478,0.01277057,66991.0,66990.0,0.162238]
[1729990629383,0.0574096,66991.0,66990.0,0.162238]
[1729990632374,0.01277057,66991.0,66990.0,0.162238]
[1729990632539,0.01277057,66991.0,66990.0,0.012962]
[1729990632757,0.09487057,66991.0,66990.0,0.012962]
[1729990632961,0.16182911,66991.0,66990.0,0.162238]
[1729990633568,0.16182911,66991.0,66990.0,0.15756881]
[1729990633783,0.16182911,66991.0,66990.0,0.16223806]
[1729990635186,0.09487057,66991.0,66990.0,0.16223806]
[1729990635857,0.09487057,66991.0,66990.0,0.01296206]
[1729990636069,0.09487057,66991.0,66990.0,0.16223806]
[1729990636272,0.25985392,66991.0,66990.0,0.16223806]
[1729990637294,0.34913198,66991.0,66990.0,0.16223806]
[1729990637923,0.09487057,66991.0,66990.0,0.16223806]
[1729990638962,0.09487057,66991.0,66990.0,0.15476725]
[1729990639174,0.09487057,66991.0,66990.0,0.16223826]
[1729990639377,0.09487057,66991.0,66990.0,0.15476725]
[1729990641068,0.25995025,66991.0,66990.0,0.15476725]
[1729990641505,0.25995025,66991.0,66990.0,0.15476738]
[1729990642386,0.09487057,66991.0,66990.0,0.15476738]
[1729990643746,0.01277057,66991.0,66990.0,0.15476738]
[1729990644350,0.01277057,66991.0,66990.0,0.1622383]
[1729990644927,0.00700036,66991.0,66990.0,0.1622383]
[1729990645123,0.00700036,66991.0,66990.0,0.26061486]
[1729990645303,0.00700036,66991.0,66990.0,0.37101687]
[1729990645507,0.002294,66991.0,66990.0,0.249298]
[1729990645767,0.00700036,66991.0,66990.0,0.27263793]
[1729990649463,0.00700036,66991.0,66990.0,0.26049878]
[1729990649665,0.00700036,66991.0,66990.0,0.27263782]
[1729990651198,0.00700036,66991.0,66990.0,0.28449415]
[1729990653188,0.00700036,66991.0,66990.0,0.27263782]
[1729990653946,0.00700036,66991.0,66990.0,0.26143721]
[1729990654166,0.00700036,66991.0,66990.0,0.27263062]
[1729990655487,0.07411954,66991.0,66990.0,0.27263062]
[1729990655858,0.07985936,66991.0,66990.0,0.27263062]
[1729990657365,0.07985936,66991.0,66990.0,0.249298]
[1729990657571,0.07985936,66991.0,66990.0,0.26796056]
[1729990657800,0.07985936,66991.0,66990.0,0.27262948]
[1729990659172,0.07985936,66991.0,66990.0,0.17342948]
[1729990659379,0.01274018,66991.0,66990.0,0.1734295]
[1729990659594,0.00700036,66991.0,66990.0,0.16129028]
[1729990659809,0.00700036,66991.0,66990.0,0.1734295]
[1729990660693,0.07411521,66991.0,66990.0,0.17342912]
[1729990661117,0.07985503,66991.0,66990.0,0.17342912]
[1729990664088,0.07985361,66991.0,66990.0,0.17342912]
[1729990668536,0.07985538,66991.0,66990.0,0.17343046]
[1729990670473,0.01274018,66991.0,66990.0,0.17343046]
[1729990670674,0.17791058,66991.0,66990.0,0.17343046]
[1729990670876,0.00700036,66991.0,66990.0,0.17343046]
[1729990671073,0.01268396,66991.0,66990.0,0.17343046]
[1729990671295,0.07411842,66991.0,66990.0,0.17343046]
[1729990671845,0.07980203,66991.0,66990.0,0.17343046]
[1729990672057,0.01268396,66991.0,66990.0,0.17343046]
[1729990672265,0.01268396,66991.0,66990.0,0.16223727]
[1729990672266,0.07980357,66991.0,66990.0,0.16223727]
[1729990672481,0.17217701,66991.0,66990.0,0.17343358]
[1729990672701,0.26734754,66991.0,66990.0,0.17343358]
[1729990672924,0.17786061,66991.0,66990.0,0.17343358]
[1729990673135,0.01268396,66991.0,66990.0,0.17343358]
[1729990673567,0.00700036,66991.0,66990.0,0.17343358]
[1729990673997,0.26166618,66991.0,66990.0,0.17343358]
[1729990674214,0.26734978,66991.0,66990.0,0.17343358]
[1729990675867,0.26734978,66991.0,66990.0,0.17343392]
[1729990676268,0.17786285,66991.0,66990.0,0.17343392]
[1729990676560,0.26736855,66991.0,66990.0,0.17343392]
[1729990679362,0.26736855,66991.0,66990.0,0.16223761]
[1729990680218,0.26736855,66991.0,66990.0,0.150098]
[1729990680430,0.26736855,66991.0,66990.0,0.17343991]
[1729990680861,0.26736855,66991.0,66990.0,0.18464252]
[1729990681086,0.26736855,66991.0,66990.0,0.17343991]
[1729990681303,0.26736855,66991.0,66990.0,0.1967819]
[1729990682184,0.17786285,66991.0,66990.0,0.1967819]
[1729990683487,0.17786285,66991.0,66990.0,0.18464252]
[1729990683693,0.17786285,66991.0,66990.0,0.1967819]
[1729990686052,0.28972151,66991.0,66990.0,0.1967819]
[1729990687095,0.17786285,66991.0,66990.0,0.1967819]
[1729990687531,0.17786285,66991.0,66990.0,0.18931151]
[1729990687781,0.28972151,66991.0,66990.0,0.1967819]
[1729990688455,0.26741943,66991.0,66990.0,0.1967819]
[1729990688670,0.17786285,66991.0,66990.0,0.1967819]
[1729990688887,0.26741861,66991.0,66990.0,0.1967819]
[1729990689584,0.26741855,66991.0,66990.0,0.1967819]
[1729990689804,0.17786285,66991.0,66990.0,0.1967819]
[1729990691331,0.17786285,66991.0,66990.0,0.17343999]
[1729990694151,0.28972151,66991.0,66990.0,0.17343999]
[1729990694799,0.28972151,66991.0,66990.0,0.15756838]
[1729990695017,0.28972151,66991.0,66990.0,0.17344067]
[1729990698672,0.28972151,66991.0,66990.0,0.17344096]
[1729990699207,0.17786285,66991.0,66990.0,0.17344096]
[1729990699444,0.28980942,66991.0,66990.0,0.17344096]
[1729990699889,0.28992771,66991.0,66990.0,0.17344096]
[1729990702371,0.28992771,66991.0,66990.0,0.16597058]
[1729990702591,0.28992771,66991.0,66990.0,0.17344096]
[1729990704531,0.28993939,66991.0,66990.0,0.17344096]
[1729990705916,0.28993939,66991.0,66990.0,0.16130159]
[1729990706137,0.28993939,66991.0,66990.0,0.17344152]
[1729990707966,0.01268396,66991.0,66990.0,0.17344152]
[1729990708204,0.00700036,66991.0,66990.0,0.17344152]
[1729990708452,0.28425322,66991.0,66990.0,0.17344152]
[1729990708651,0.28993682,66991.0,66990.0,0.17344152]
[1729990711590,0.01268396,66991.0,66990.0,0.17344152]
[1729990711922,0.00700036,66991.0,66990.0,0.17344152]